bitfinex/quotes_BTCUSD_20250421
["timestamp","ask_amount","ask_price","bid_price","bid_amount"]
[1745217343226,0.0372,87260.0,87252.0,0.00229201]
[1745217343431,0.0372,87260.0,87251.0,0.34]
[1745217350298,0.0372,87260.0,87252.0,0.0022919]
[1745217351185,0.0302,87260.0,87252.0,0.0022919]
[1745217351762,0.0302,87260.0,87251.0,0.34]
[1745217352061,0.045,87259.0,87251.0,0.34]
[1745217357583,0.045,87259.0,87250.0,0.04416589]
[1745217357936,0.045,87259.0,87249.0,0.14842558]
[1745217358727,0.038,87259.0,87249.0,0.14842558]
[1745217359672,0.038,87259.0,87250.0,0.34]
[1745217366561,0.031,87259.0,87250.0,0.34]
[1745217369520,0.031,87259.0,87249.0,0.03857928]
[1745217369662,0.0488,87258.0,87249.0,0.03857928]
[1745217370017,0.0488,87258.0,87241.0,0.00229214]
[1745217370352,0.0488,87258.0,87241.0,0.04036242]
[1745217370812,0.0488,87258.0,87241.0,0.37807028]
[1745217371028,0.046,87242.0,87241.0,0.03807028]
[1745217371232,0.01454085,87241.0,87233.0,0.00177296]
[1745217371445,0.01454085,87241.0,87220.0,0.0004224]
[1745217371446,0.046,87240.0,87220.0,0.14842558]
[1745217371661,0.046,87240.0,87221.0,0.34]
[1745217371861,0.046,87240.0,87220.0,0.14842558]
[1745217372018,0.046,87240.0,87221.0,0.34229279]
[1745217372223,0.046,87240.0,87212.0,0.07426594]
[1745217372426,0.046,87238.0,87212.0,0.07426594]
[1745217372916,0.13398876,87237.0,87220.0,0.11872641]
[1745217373121,0.14253741,87237.0,87221.0,0.34]
[1745217373547,0.046,87236.0,87221.0,0.34]
[1745217373741,0.11944791,87235.0,87221.0,0.34]
[1745217373945,0.0488,87234.0,87221.0,0.34]
[1745217374149,0.046,87232.0,87221.0,0.34]
[1745217374762,0.11944791,87231.0,87221.0,0.34]
[1745217375330,0.0488,87228.0,87220.0,0.11872641]
[1745217375529,0.046,87226.0,87220.0,0.11872641]
[1745217375800,0.16544791,87226.0,87220.0,0.11872641]
[1745217376231,0.046,87225.0,87220.0,0.11872641]
[1745217377765,0.0488,87224.0,87220.0,0.11872641]
[1745217377966,0.046,87223.0,87220.0,0.11872641]
[1745217378565,0.046,87223.0,87204.0,0.34]
[1745217378775,0.046,87223.0,87191.0,0.34]
[1745217378957,0.046,87223.0,87193.0,0.34]
[1745217379176,0.046,87223.0,87201.0,0.34]
[1745217380496,0.046,87223.0,87193.0,0.03744983]
[1745217380497,0.14842558,87211.0,87193.0,0.03744983]
[1745217380670,0.0494,87210.0,87193.0,0.03744983]
[1745217380879,0.0494,87210.0,87191.0,0.34]
[1745217381079,0.0494,87210.0,87191.0,0.45944791]
[1745217381233,0.0494,87210.0,87191.0,0.49791175]
[1745217381901,0.0424,87210.0,87191.0,0.4983635]
[1745217382248,0.0424,87210.0,87192.0,0.00229337]
[1745217382445,0.0424,87210.0,87191.0,0.03891559]
[1745217383603,0.05084637,87210.0,87191.0,0.03891559]
[1745217384009,0.0472,87209.0,87191.0,0.03891559]
[1745217385620,0.0472,87209.0,87191.0,0.37891559]
[1745217386497,0.0472,87209.0,87191.0,0.03891559]
[1745217386909,0.0454,87208.0,87191.0,0.03891559]
[1745217389373,0.16484791,87208.0,87191.0,0.03891559]
[1745217389603,0.15784791,87208.0,87191.0,0.03891559]
[1745217389895,0.11944791,87207.0,87191.0,0.03891559]
[1745217390525,0.10639826,87206.0,87191.0,0.03891559]
[1745217390713,0.11944791,87205.0,87191.0,0.03891559]
[1745217391099,0.0472,87204.0,87191.0,0.03891559]
[1745217391303,0.01454085,87201.0,87191.0,0.00045175]
[1745217391501,0.0472,87198.0,87191.0,0.00045175]
[1745217391844,0.13398876,87197.0,87191.0,0.00045175]
[1745217392758,0.0454,87194.0,87191.0,0.00045175]
[1745217392935,0.11944791,87193.0,87191.0,0.00045175]
[1745217393590,0.0454,87194.0,87191.0,0.00045175]
[1745217397426,0.0384,87194.0,87191.0,0.00045175]
[1745217397623,0.0472,87196.0,87191.0,0.00045175]
[1745217398845,0.001,87205.0,87191.0,0.00045175]
[1745217399052,0.001,87205.0,87196.0,0.34]
[1745217399660,0.001,87205.0,87197.0,0.00596453]
[1745217400782,0.001,87205.0,87191.0,0.34045175]
[1745217400992,0.001,87205.0,87198.0,0.00596453]
[1745217401229,0.00075684,87205.0,87191.0,0.34069491]
[1745217401541,0.00075684,87205.0,87192.0,0.00596453]
[1745217403819,0.00075684,87205.0,87195.0,0.22674971]
[1745217404025,0.00075684,87205.0,87196.0,0.11944791]
[1745217404222,0.00075684,87205.0,87196.0,0.1252777]
[1745217404633,0.00075684,87205.0,87195.0,0.1325795]
[1745217404993,0.00075684,87205.0,87196.0,0.00485683]
[1745217405140,0.08561425,87216.0,87196.0,0.00485683]
[1745217407081,0.08561425,87216.0,87196.0,0.34]
[1745217407235,0.16794791,87215.0,87196.0,0.34]
[1745217408365,0.16794791,87215.0,87192.0,0.02]
[1745217408591,0.16794791,87215.0,87192.0,0.02229354]
[1745217408788,0.16794791,87215.0,87192.0,0.02]
[1745217410507,0.16794791,87215.0,87192.0,0.00075684]
[1745217413229,0.16094791,87215.0,87193.0,0.00229355]
[1745217414609,0.0485,87215.0,87193.0,0.00229355]
[1745217414970,0.0476,87217.0,87201.0,0.34]
[1745217415174,0.0476,87217.0,87202.0,0.00229334]
[1745217415697,0.27255301,87223.0,87208.0,0.34]
[1745217415955,0.0464,87226.0,87208.0,0.34]
[1745217416706,0.04618185,87226.0,87208.0,0.34]
[1745217417413,0.04618185,87226.0,87200.0,0.22674971]
[1745217417602,0.05470965,87226.0,87201.0,0.11944791]
[1745217419205,0.0479,87224.0,87190.0,0.22674971]
[1745217419504,0.11944791,87223.0,87193.0,0.11944791]
[1745217419702,0.0464,87222.0,87193.0,0.11944791]
[1745217419882,0.11944791,87221.0,87193.0,0.11944791]
[1745217420872,0.0464,87222.0,87194.0,0.34]
[1745217421058,0.0464,87222.0,87201.0,0.34]
[1745217421248,0.0464,87222.0,87202.0,0.00229316]
[1745217421456,0.0464,87222.0,87203.0,0.34]
[1745217421656,0.0464,87222.0,87203.0,0.45944791]
[1745217423317,0.0464,87222.0,87194.0,0.0497]
[1745217423483,0.0464,87222.0,87196.0,0.34]
[1745217423686,0.0464,87222.0,87196.0,0.45944791]
[1745217423849,0.0464,87222.0,87196.0,0.11944791]
[1745217424189,0.04617185,87222.0,87196.0,0.11944791]
[1745217424872,0.09185741,87219.0,87191.0,0.34]
[1745217425074,0.09185741,87219.0,87193.0,0.34229335]
[1745217425277,0.09185741,87219.0,87193.0,0.11944791]
[1745217426431,0.09185741,87219.0,87201.0,0.34]
[1745217427068,0.0479,87224.0,87201.0,0.34]
[1745217427069,0.0479,87224.0,87201.0,0.45944791]
[1745217427292,0.0488,87223.0,87201.0,0.45944791]
[1745217427413,0.0488,87223.0,87201.0,0.11944791]
[1745217428522,0.16124791,87223.0,87192.0,0.00075684]
[1745217428740,0.16124791,87223.0,87194.0,0.34]
[1745217428936,0.16124791,87223.0,87196.0,0.34]
[1745217429156,0.16124791,87223.0,87196.0,0.45944791]
[1745217432288,0.0488,87222.0,87196.0,0.45944791]
[1745217432542,0.0488,87221.0,87192.0,0.00075684]
[1745217432762,0.0488,87221.0,87193.0,0.11944791]
[1745217436319,0.0418,87221.0,87194.0,0.34]
[1745217436470,0.0418,87221.0,87194.0,0.45944791]
[1745217438219,0.09185741,87219.0,87194.0,0.45944791]
[1745217438436,0.09176987,87219.0,87194.0,0.45944791]
[1745217439262,0.0488,87218.0,87194.0,0.45944791]
[1745217439892,0.04856884,87218.0,87194.0,0.45944791]
[1745217440747,0.04856884,87218.0,87194.0,0.46020475]
[1745217441377,0.0464,87217.0,87194.0,0.46020475]
[1745217443960,0.0394,87217.0,87194.0,0.46020475]
[1745217444141,0.0484,87216.0,87194.0,0.00075684]
[1745217444538,0.13398876,87215.0,87194.0,0.00075684]
[1745217444741,0.0484,87214.0,87194.0,0.00075684]
[1745217444940,0.11944791,87213.0,87194.0,0.00075684]
[1745217445165,0.0484,87212.0,87194.0,0.00075684]
[1745217445327,0.0484,87211.0,87194.0,0.00075684]
[1745217446601,0.0484,87211.0,87194.0,0.00075684]
[1745217446951,0.0484,87209.0,87194.0,0.00075684]
[1745217447372,0.04915684,87209.0,87183.0,0.0131815]
[1745217447591,0.04915684,87209.0,87184.0,0.11944791]
[1745217447792,0.04915684,87209.0,87185.0,0.34]
[1745217448016,0.008,87200.0,87185.0,0.45944791]
[1745217449936,0.008,87200.0,87191.0,0.34]
[1745217450144,0.008,87200.0,87192.0,0.12174124]
[1745217450372,0.008,87200.0,87192.0,0.11944791]
[1745217451172,0.00875684,87200.0,87192.0,0.11944791]
[1745217451598,0.00175684,87200.0,87192.0,0.11944791]
[1745217455164,0.00163175,87200.0,87193.0,0.34]
[1745217455368,0.00163175,87200.0,87195.0,0.34]
[1745217456600,0.00163175,87200.0,87196.0,0.00229333]
[1745217458111,0.00163175,87200.0,87195.0,0.11944791]
[1745217458940,0.0015366,87200.0,87195.0,0.11944791]
[1745217459326,0.04091254,87210.0,87195.0,0.11944791]
[1745217459560,0.04091254,87210.0,87200.0,0.14878225]
[1745217461783,0.0463,87214.0,87200.0,0.14878225]
[1745217466324,0.0463,87214.0,87201.0,0.34]
[1745217467038,0.0393,87214.0,87201.0,0.34]
[1745217470444,0.0393,87214.0,87195.0,0.11944791]
[1745217470645,0.03909786,87214.0,87200.0,0.14878225]
[1745217472354,0.03909786,87214.0,87190.0,0.14878225]
[1745217472561,0.03909786,87214.0,87191.0,0.11944791]
[1745217473966,0.0454,87213.0,87191.0,0.11944791]
[1745217474170,0.0496,87212.0,87191.0,0.11944791]
[1745217474922,0.0426,87212.0,87191.0,0.11944791]
[1745217476321,0.0426,87212.0,87190.0,0.14878225]
[1745217477953,0.0426,87212.0,87200.0,0.14878225]
[1745217479938,0.0426,87212.0,87200.0,0.04878225]
[1745217482143,0.0426,87212.0,87191.0,0.11944791]
[1745217482475,0.0356,87212.0,87191.0,0.11944791]
[1745217484365,0.0356,87212.0,87191.0,0.11819791]
[1745217486921,0.03548577,87212.0,87191.0,0.11819791]
[1745217487716,0.03548577,87212.0,87192.0,0.34]
[1745217487936,0.03548577,87212.0,87194.0,0.34]
[1745217488239,0.0458,87211.0,87194.0,0.34]
[1745217489965,0.0458,87209.0,87183.0,0.35329022]
[1745217490116,0.11944791,87218.0,87185.0,0.34]
[1745217490117,0.0388,87207.0,87185.0,0.34]
[1745217490325,0.0455,87206.0,87185.0,0.45944791]
[1745217491209,0.0455,87206.0,87183.0,0.01329022]
[1745217491412,0.0455,87206.0,87184.0,0.11944791]
[1745217492083,0.0455,87206.0,87183.0,0.01329022]
[1745217492755,0.11944791,87205.0,87183.0,0.01329022]
[1745217492968,0.0455,87204.0,87183.0,0.01329022]
[1745217493415,0.0458,87203.0,87183.0,0.01329022]
[1745217493639,0.0913,87201.0,87183.0,0.01329022]
[1745217493803,0.04530187,87200.0,87183.0,0.01329022]
[1745217493992,0.0458,87199.0,87183.0,0.01329022]
[1745217494792,0.05452444,87199.0,87183.0,0.01329022]
[1745217496926,0.0455,87198.0,87183.0,0.01329022]
[1745217497149,0.0455,87196.0,87183.0,0.01329022]
[1745217497490,0.0458,87195.0,87183.0,0.01329022]
[1745217497604,0.0455,87193.0,87183.0,0.01329022]
[1745217497803,0.0385,87193.0,87183.0,0.01329022]
[1745217499761,0.0458,87192.0,87183.0,0.01329022]
[1745217499970,0.04570147,87192.0,87183.0,0.01329022]
[1745217501094,0.0457,87191.0,87183.0,0.01329022]
[1745217501492,0.04554089,87191.0,87183.0,0.01329022]
[1745217505641,0.03854089,87191.0,87183.0,0.01329022]
[1745217508064,0.03854089,87191.0,87180.0,0.14878225]
[1745217508284,0.03854089,87191.0,87180.0,0.14891768]
[1745217508489,0.04570147,87192.0,87181.0,0.00229402]
[1745217508683,0.04570147,87192.0,87180.0,0.33677836]
[1745217509333,0.04570147,87192.0,87180.0,0.18799611]
[1745217509489,0.04570147,87192.0,87181.0,0.00229382]
[1745217509887,0.0457,87197.0,87181.0,0.00229382]
[1745217510088,0.0457,87197.0,87187.0,0.14878225]
[1745217510530,0.27255301,87198.0,87187.0,0.14878225]
[1745217510731,0.00859447,87199.0,87187.0,0.14878225]
[1745217510912,0.0484,87200.0,87187.0,0.14878225]
[1745217511355,0.05706181,87200.0,87187.0,0.14878225]
[1745217511797,0.05706181,87200.0,87180.0,0.18799611]
[1745217513289,0.05006181,87200.0,87181.0,0.34]
[1745217514399,0.05006181,87200.0,87182.0,0.00229375]
[1745217514631,0.05006181,87200.0,87181.0,0.34]
[1745217515721,0.05006181,87200.0,87180.0,0.03921386]
[1745217515921,0.05006181,87200.0,87180.0,0.18799611]
[1745217521004,0.04306181,87200.0,87180.0,0.18799611]
[1745217522109,0.04306181,87200.0,87190.0,0.14878225]
[1745217525109,0.04306181,87200.0,87180.0,0.18799611]
[1745217527904,0.04306181,87200.0,87180.0,0.14878225]
[1745217528107,0.16834791,87199.0,87172.0,0.1054]
[1745217528315,0.0489,87198.0,87180.0,0.14878225]
[1745217528541,0.0489,87196.0,87180.0,0.14878225]
[1745217528741,0.0419,87196.0,87180.0,0.14878225]
[1745217529117,0.0419,87196.0,87180.0,0.03856594]
[1745217529349,0.0419,87196.0,87180.0,0.14878225]
[1745217530477,0.0419,87196.0,87181.0,0.34]
[1745217534754,0.0419,87196.0,87186.0,0.14878225]
[1745217535067,0.0419,87196.0,87181.0,0.00229375]
[1745217536497,0.0349,87196.0,87181.0,0.00229375]
[1745217538796,0.3153678,87200.0,87186.0,0.14878225]
[1745217538797,0.30695301,87200.0,87186.0,0.14878225]
[1745217539002,0.30695301,87200.0,87187.0,0.00229359]
[1745217539967,0.30673686,87200.0,87187.0,0.00229359]
[1745217540168,0.03418385,87200.0,87187.0,0.00229359]
[1745217544161,0.02718385,87200.0,87187.0,0.00229359]
[1745217546581,0.02718385,87200.0,87186.0,0.14878225]
[1745217546781,0.02718385,87200.0,87182.0,0.11944791]
[1745217546982,0.02718385,87200.0,87190.0,0.14878225]
[1745217549812,0.0474,87199.0,87190.0,0.14878225]
[1745217550398,0.0474,87199.0,87189.0,0.14878225]
[1745217551732,0.0474,87199.0,87182.0,0.11944791]
[1745217551934,0.0404,87199.0,87182.0,0.11944791]
[1745217553060,0.0404,87199.0,87180.0,0.18855621]
[1745217557535,0.0404,87199.0,87180.0,0.03977396]
[1745217557905,0.0404,87199.0,87180.0,0.14878225]
[1745217558612,0.0404,87199.0,87180.0,0.19637499]
[1745217559018,0.0404,87199.0,87180.0,0.04759274]
[1745217559217,0.0404,87199.0,87180.0,0.14878225]
[1745217559533,0.0334,87199.0,87180.0,0.14878225]
[1745217559739,0.0334,87199.0,87180.0,0.19441811]
[1745217560083,0.0499,87196.0,87180.0,0.04563586]
[1745217560288,0.0499,87196.0,87170.0,0.14878225]
[1745217560735,0.11944791,87195.0,87172.0,0.04598521]
[1745217561041,0.0499,87194.0,87172.0,0.00013554]
[1745217562488,0.0465,87193.0,87172.0,0.00013554]
[1745217562685,0.0465,87193.0,87172.0,0.04645933]
[1745217563235,0.0473,87192.0,87172.0,0.04645933]
[1745217565442,0.0473,87192.0,87173.0,0.00229405]
[1745217565633,0.0473,87192.0,87180.0,0.14878225]
[1745217566068,0.0473,87192.0,87172.0,0.04645933]
[1745217566283,0.0465,87191.0,87172.0,0.04645933]
[1745217566853,0.11944791,87195.0,87172.0,0.04645933]
[1745217566854,0.0473,87190.0,87172.0,0.04645933]
[1745217567062,0.0465,87189.0,87172.0,0.04645933]
[1745217567275,0.0395,87189.0,87172.0,0.04645933]
[1745217568286,0.0395,87189.0,87170.0,0.14878225]
[1745217568495,0.03959849,87189.0,87170.0,0.14878225]
[1745217569152,0.03959849,87189.0,87170.0,0.19612866]
[1745217570923,0.03939335,87189.0,87170.0,0.19612866]
[1745217574942,0.03239335,87189.0,87170.0,0.19612866]
[1745217575248,0.03239335,87189.0,87171.0,0.34]
[1745217578482,0.0321632,87189.0,87171.0,0.34]
[1745217580372,0.0321632,87189.0,87172.0,0.00229413]
[1745217582751,0.0251632,87189.0,87170.0,0.04734641]
[1745217582967,0.0251632,87189.0,87171.0,0.00229398]
[1745217583378,0.0251632,87189.0,87170.0,0.26823016]
[1745217583591,0.0251632,87189.0,87171.0,0.00229398]
[1745217585460,9.849e-05,87189.0,87179.0,0.14878225]
[1745217585703,9.849e-05,87189.0,87180.0,0.12174167]
[1745217585911,9.849e-05,87189.0,87180.0,0.11944791]
[1745217587263,0.0953,87188.0,87170.0,0.19573819]
[1745217587519,0.0953,87188.0,87171.0,0.11944791]
[1745217588546,9.849e-05,87189.0,87178.0,0.19648225]
[1745217588856,9.849e-05,87189.0,87179.0,0.12174172]
[1745217589409,9.849e-05,87189.0,87179.0,0.27052397]
[1745217589617,9.849e-05,87189.0,87179.0,0.26823016]
[1745217591092,0.0489,87199.0,87189.0,0.14878225]
[1745217591093,0.04199849,87199.0,87189.0,0.14878225]
[1745217593576,0.04199849,87199.0,87179.0,0.00099583]
[1745217593780,0.04199849,87199.0,87180.0,0.14878225]
[1745217593983,0.04186722,87199.0,87180.0,0.26823016]
[1745217596312,0.04152989,87199.0,87180.0,0.26823016]
[1745217596453,0.04144465,87199.0,87180.0,0.26823016]
[1745217598667,0.0427,87198.0,87180.0,0.26823016]
[1745217598873,0.0022937,87197.0,87179.0,9.849e-05]
[1745217602047,0.0497,87196.0,87179.0,9.849e-05]
[1745217602290,0.0022937,87195.0,87179.0,9.849e-05]
[1745217605413,0.0479,87194.0,87179.0,9.849e-05]
[1745217605591,0.0519937,87193.0,87179.0,9.849e-05]
[1745217606384,0.0449937,87193.0,87179.0,9.849e-05]
[1745217609886,0.0479,87194.0,87180.0,0.14878225]
[1745217610092,0.0479,87194.0,87181.0,0.00229383]
[1745217610561,0.01104204,87208.0,87181.0,0.00229383]
[1745217610562,0.0462,87204.0,87181.0,0.00229383]
[1745217610876,0.0462,87204.0,87182.0,0.0451]
[1745217611083,0.0462,87204.0,87183.0,0.00229364]
[1745217614235,0.0392,87204.0,87183.0,0.00229364]
[1745217615705,0.0392,87204.0,87190.0,0.14878225]
[1745217615925,0.0392,87204.0,87191.0,0.00229359]
[1745217617130,0.0476,87207.0,87190.0,0.14878225]
[1745217617131,0.0476,87207.0,87193.0,0.0451]
[1745217617327,0.0476,87207.0,87197.0,0.14878225]
[1745217617544,0.0476,87207.0,87198.0,0.00229336]
[1745217617750,0.0476,87207.0,87194.0,0.00229338]
[1745217618082,0.0462,87214.0,87194.0,0.00229338]
[1745217618282,0.0462,87214.0,87200.0,0.14878225]
[1745217618457,0.0462,87214.0,87201.0,0.00229331]
[1745217618652,0.0462,87214.0,87194.0,0.00229331]
[1745217621835,0.0406,87215.0,87194.0,0.00229331]
[1745217623998,0.0022937,87214.0,87194.0,0.00229331]
[1745217624201,0.0022937,87214.0,87191.0,0.34]
[1745217624462,0.049,87213.0,87192.0,0.11944791]
[1745217624648,0.0022937,87212.0,87192.0,0.11944791]
[1745217624887,0.00205154,87212.0,87192.0,0.11944791]
[1745217627583,0.00209154,87212.0,87192.0,0.11944791]
[1745217629616,0.04409154,87213.0,87192.0,0.11944791]
[1745217633396,0.04413154,87213.0,87192.0,0.11944791]
[1745217636187,0.04413154,87213.0,87193.0,0.00229332]
[1745217637259,0.04413154,87213.0,87200.0,0.14878225]
[1745217637446,4e-05,87213.0,87201.0,0.00229323]
[1745217643977,4e-05,87213.0,87194.0,0.11944791]
[1745217644949,0.03364,87215.0,87194.0,0.11944791]
[1745217650069,0.03364,87215.0,87195.0,0.00229323]
[1745217650384,0.03364,87215.0,87196.0,0.11944791]
[1745217650590,0.03364,87215.0,87197.0,0.00229323]
[1745217651359,0.03364,87215.0,87196.0,0.11944791]
[1745217651537,0.03364,87215.0,87200.0,0.14878225]
[1745217651860,0.03364,87215.0,87201.0,0.00229323]
[1745217652064,0.03364,87215.0,87200.0,0.14878225]
[1745217652270,0.03364,87215.0,87196.0,0.11944791]
[1745217653184,0.02664,87215.0,87196.0,0.11944791]
[1745217653359,0.02664,87215.0,87200.0,0.14878225]
[1745217654315,0.02664,87215.0,87201.0,0.00229324]
[1745217654926,0.02664,87215.0,87205.0,0.14878225]
[1745217655133,0.004,87219.0,87206.0,0.00229314]
[1745217658087,0.004,87219.0,87207.0,0.11944791]
[1745217658281,0.004,87219.0,87208.0,0.00229292]
[1745217658519,0.004,87219.0,87208.0,0.12174083]
[1745217658904,0.004,87219.0,87209.0,0.11944791]
[1745217659064,0.004,87219.0,87210.0,0.10464]
[1745217659274,0.004,87219.0,87211.0,0.11944791]
[1745217659929,0.004,87219.0,87212.0,0.00229282]
[1745217660122,0.004,87219.0,87213.0,0.11944791]
[1745217660712,0.004,87219.0,87214.0,0.34229282]
[1745217660874,0.0008448,87233.0,87218.0,0.34]
[1745217661080,0.0008448,87233.0,87219.0,0.00229274]
[1745217661865,0.0008448,87233.0,87218.0,0.38659747]
[1745217662440,0.0008448,87233.0,87219.0,0.00229274]
[1745217663603,0.0008448,87233.0,87218.0,0.21677605]
[1745217663804,0.0008448,87233.0,87219.0,0.00229271]
[1745217664222,0.0008448,87233.0,87220.0,0.11944791]
[1745217664469,0.0008448,87233.0,87223.0,0.14878225]
[1745217664669,0.0008448,87233.0,87224.0,0.00229258]
[1745217665087,0.0008448,87233.0,87223.0,0.14878225]
[1745217665428,0.0008448,87233.0,87224.0,0.00114614]
[1745217665635,0.0008448,87233.0,87223.0,0.14878225]
[1745217665742,0.0008448,87233.0,87220.0,0.14878225]
[1745217668632,0.0461348,87236.0,87221.0,0.34]
[1745217675633,0.0461348,87236.0,87222.0,0.00114616]
[1745217676262,0.0391348,87236.0,87222.0,0.00114616]
[1745217678237,0.0008456,87243.0,87227.0,0.34]
[1745217678807,0.0008456,87243.0,87228.0,0.00114578]
[1745217679147,0.0008456,87243.0,87229.0,0.1046]
[1745217679353,4e-05,87236.0,87229.0,0.1046]
[1745217684031,0.0434304,87246.0,87230.0,0.34]
[1745217688848,0.0434704,87246.0,87230.0,0.34]
[1745217691494,0.04856546,87245.0,87220.0,0.14878225]
[1745217691622,0.04156546,87245.0,87227.0,0.10444]
[1745217691826,0.04328532,87245.0,87227.0,0.10444]
[1745217694612,0.0453,87244.0,87220.0,0.11944791]
[1745217694767,0.04741986,87243.0,87225.0,0.10444]
[1745217698589,0.04741986,87243.0,87213.0,0.0489]
[1745217698590,0.047,87241.0,87221.0,0.10444]
[1745217698769,0.12116777,87240.0,87221.0,0.10444]
[1745217699373,0.047,87241.0,87221.0,0.10673277]
[1745217699594,0.047,87241.0,87221.0,0.10444]
[1745217702541,0.11944791,87240.0,87221.0,0.10444]
[1745217702737,0.047,87238.0,87221.0,0.10444]
[1745217705951,0.04704,87238.0,87221.0,0.10444]
[1745217707041,0.04004,87238.0,87221.0,0.10444]
[1745217708175,0.11944791,87237.0,87221.0,0.10444]
[1745217708381,0.0494,87236.0,87221.0,0.10444]
[1745217710032,0.0466,87235.0,87219.0,0.10444]
[1745217710427,0.11944791,87234.0,87219.0,0.10444]
[1745217710643,0.0466,87233.0,87218.0,0.10444]
[1745217710844,0.0466,87233.0,87217.0,0.10444]
[1745217711044,0.0466,87233.0,87217.0,0.14424471]
[1745217711249,0.0466,87233.0,87217.0,0.03980471]
[1745217711450,0.0466,87233.0,87210.0,0.14878225]
[1745217711891,0.0466,87233.0,87212.0,0.34]
[1745217712536,0.04664,87233.0,87212.0,0.34]
[1745217713398,0.04664,87233.0,87212.0,0.37874036]
[1745217714878,0.03964,87233.0,87212.0,0.37874036]
[1745217722549,0.03264,87233.0,87212.0,0.37874036]
[1745217726393,0.14878225,87230.0,87212.0,0.37874036]
[1745217726603,0.0492,87227.0,87212.0,0.03874036]
[1745217726851,0.14878225,87230.0,87209.0,0.34]
[1745217726852,0.0492,87225.0,87209.0,0.34]
[1745217727059,0.0492,87223.0,87209.0,0.34]
[1745217727263,0.11944791,87222.0,87206.0,0.10432]
[1745217727476,0.0977,87221.0,87206.0,0.10432]
[1745217727678,0.0492,87220.0,87207.0,0.34]
[1745217730310,0.0422,87220.0,87207.0,0.34]
[1745217730941,0.0485,87219.0,87207.0,0.3867926]
[1745217733260,0.0492,87218.0,87207.0,0.3867926]
[1745217733881,0.0977,87217.0,87207.0,0.0467926]
[1745217734075,0.0977,87217.0,87202.0,0.10432]
[1745217734307,0.0485,87215.0,87202.0,0.10432]
[1745217734671,0.0485,87215.0,87202.0,0.15017001]
[1745217736299,0.0492,87214.0,87202.0,0.15017001]
[1745217737983,0.0422,87214.0,87203.0,0.34]
[1745217740638,0.0422,87214.0,87203.0,0.33]
[1745217743020,0.04224,87214.0,87203.0,0.33]
[1745217745792,0.03524,87214.0,87203.0,0.33]
[1745217751821,0.03524,87214.0,87202.0,0.04585001]
[1745217752042,0.03524,87214.0,87198.0,0.1042]
[1745217752453,0.03524,87214.0,87198.0,0.15071047]
[1745217753344,0.02824,87214.0,87198.0,0.15071047]
[1745217755633,0.11944791,87213.0,87199.0,0.34]
[1745217758254,0.11944791,87213.0,87198.0,0.15071047]
[1745217761124,0.11244791,87213.0,87198.0,0.15071047]
[1745217762304,0.11244791,87213.0,87198.0,0.04651047]
[1745217762507,0.045,87209.0,87188.0,0.1042]
[1745217762674,0.11944791,87208.0,87188.0,0.1042]
[1745217763505,0.11944791,87208.0,87188.0,0.15126642]
[1745217766185,0.049,87207.0,87188.0,0.15126642]
[1745217766410,0.11944791,87206.0,87188.0,0.15126642]
[1745217767053,0.11935242,87206.0,87188.0,0.15126642]
[1745217768739,0.11235242,87206.0,87189.0,0.34]
[1745217770312,0.0473,87204.0,87189.0,0.34]
[1745217770515,0.11944791,87203.0,87189.0,0.34]
[1745217770672,0.0473,87201.0,87182.0,0.1042]
[1745217770913,0.0924,87200.0,87183.0,0.34]
[1745217772898,0.0924,87200.0,87183.0,0.38541434]
[1745217776478,0.0854,87200.0,87183.0,0.38541434]
[1745217784300,0.0784,87200.0,87183.0,0.38541434]
[1745217786536,0.0482,87199.0,87183.0,0.38541434]
[1745217788272,0.16764791,87198.0,87183.0,0.38541434]
[1745217788420,0.0967,87197.0,87183.0,0.38541434]
[1745217788758,0.11944791,87196.0,87183.0,0.38541434]
[1745217792087,0.11244791,87196.0,87183.0,0.38541434]
[1745217794752,0.11244791,87196.0,87183.0,0.04541434]
[1745217794983,0.0967,87195.0,87183.0,0.04541434]
[1745217795149,0.11944791,87194.0,87182.0,0.1042]
[1745217795287,0.11944791,87194.0,87170.0,0.14878225]
[1745217795500,0.11944791,87194.0,87171.0,0.10404]
[1745217795934,0.0482,87193.0,87171.0,0.10404]
[1745217796694,0.0482,87193.0,87172.0,0.34]
[1745217799637,0.0412,87193.0,87172.0,0.34]
[1745217799844,0.0412,87193.0,87173.0,0.00229401]
[1745217800409,0.0412,87193.0,87172.0,0.34]
[1745217805196,0.0412,87193.0,87171.0,0.10404]
[1745217805423,0.0493,87192.0,87171.0,0.10404]
[1745217805758,0.0491,87191.0,87171.0,0.10413849]
[1745217807339,0.0421,87191.0,87171.0,0.10413849]
[1745217807886,0.04198177,87191.0,87171.0,0.10413849]
[1745217810416,0.0493,87190.0,87172.0,0.34]
[1745217810837,0.0491,87189.0,87172.0,0.34]
[1745217813427,0.0491,87189.0,87172.0,0.34]
[1745217815071,0.0421,87189.0,87172.0,0.34]
[1745217821786,0.049,87188.0,87172.0,0.34]
[1745217822028,0.0464,87187.0,87172.0,0.34]
[1745217822303,0.049,87186.0,87172.0,0.34]
[1745217822482,0.0954,87186.0,87172.0,0.34]
[1745217822682,0.11944791,87186.0,87172.0,0.34]
[1745217822884,0.0884,87185.0,87172.0,0.34]
[1745217823089,0.0884,87185.0,87171.0,9.849e-05]
[1745217823412,0.049,87185.0,87171.0,9.849e-05]
[1745217824225,0.049,87185.0,87171.0,0.34009849]
[1745217825144,0.049,87197.0,87172.0,0.00229421]
[1745217825344,0.11944791,87196.0,87172.0,0.00229421]
[1745217825837,0.0464,87195.0,87172.0,0.00229421]
[1745217826020,0.11944791,87194.0,87171.0,0.34009849]
[1745217827010,0.11944791,87194.0,87172.0,0.00229407]
[1745217828800,0.049,87193.0,87171.0,9.849e-05]
[1745217829181,0.0464,87192.0,87171.0,9.849e-05]
[1745217831066,0.0394,87192.0,87171.0,9.849e-05]
[1745217838688,0.0324,87192.0,87171.0,9.849e-05]
[1745217841268,0.0324,87192.0,87180.0,0.2975645]
[1745217841476,0.0324,87192.0,87181.0,0.00229381]
[1745217842310,0.0324,87192.0,87181.0,0.34229381]
[1745217842520,0.0324,87192.0,87181.0,0.34]
[1745217843675,0.6092,87200.0,87182.0,0.00229381]